{"text_format":"1","workbook":"xlsx","n_sheets":16,"sheets":["UP_Rohdaten","Diagramm","Diagramm_groß","anwesend","abwesend","Statistik","Tabelle2","Tabelle1","Stunden","Anw_Diagramm","Kürzel","Gesamt","-","Info","intern","Urlaub_Druck"],"not_rendered":{"charts":4,"images":20,"macros":1,"external_links":0,"defined_names":5,"comments":3,"pivot_tables":0},"unopened":[],"bounds":{"document_bytes":16777216,"sheet_cells":100000,"rows_first":2000,"rows_last":500,"rows_between":2000,"halvings":0,"cell_chars":16384,"cell_head_chars":4096},"cells_cut":0,"cells_raw":0,"read":"whole","date_system":"1900"}

{"sheet":"UP_Rohdaten","index":0,"n_rows":0,"n_cols":0,"rows_kept":0,"cut":false,"hidden":false,"merged":[]}

{"sheet":"Diagramm","index":1,"n_rows":39,"n_cols":101,"rows_kept":39,"cut":false,"hidden":false,"merged":[]}
["Kürzel","Anz.","Bezeichnung",null,null,null,null,null,null,null,null,null,null,null,null,null,"Sonntag",null,null,null,null,null,null,null,null,null,null,"<= Speicherort Rohdaten",null,true,3985]
[null,null,null,"von",null,{"$f":"IF(E2>\"\",INDEX(Q1:Q7,G2),\"\")","v":""},{"$f":"WEEKDAY(E2)","v":7},null,null,null,null,null,null,null,null,null,"Montag",null,null,null,null,null,null,null,null,null,null,null,null,true]
["u",null,"Urlaub","bis",null,{"$f":"IF(E3>\"\",INDEX(Q1:Q7,G3),\"\")","v":""},{"$f":"WEEKDAY(E3)","v":7},"letzte Aktualisierung:",null,null,{"$f":"TODAY()","v":"2015-12-13"},null,null,null,null,null,"Dienstag"]
["u/2",null,"halber Tag Urlaub",null,null,{"$f":"COUNTA(F6:F304)","v":0},null,null,null,null,null,null,null,null,{"$f":"COUNTA(O6:O304)","v":0},null,"Mittwoch",null,null,null,null,null,false]
["u?",null,"noch nicht genehmigter Urlaub",null,"Abteilungen",{"$f":"\"anwesend (\"&(F4)&\")\"","v":"anwesend (0)"},null,null,null,null,null,null,null,null,{"$f":"\"abwesend (\"&(O4)&\")\"","v":"abwesend (0)"},null,"Donnerstag",null,null,null,null,null,false]
["u/0",null,"Urlaub unbezahlt",null,null,null,null,null,null,null,null,null,null,null,null,null,"Freitag"]
["k",null,"krank",null,null,null,null,null,null,null,null,null,null,null,null,null,"Samstag"]
["k/2",null,"krank; 1/2 Tag",null,null,null,null,null,null,null,null,null,null,null,null,null,null,null,null,null,null,null,false]
["BV",null," Beschäftigungsverbot für werdende Mütter, Schwangerschaftsurlaub, etc."]
["G",null,"ganztägig Stunden abgefeiert"]
["Ü",null,"ganztägig genehmigte Überstunden abgefeiert"]
["D",null,"Dienstreise, Schulung, etc."]
["Kur",null,"Kur/Reha"]
["O",null,"Sonderurlaub (Heirat, Umzug, Todesfall, etc.)"]
["B",null,"Bereitschaft"]
["F",null,"Frühschicht"]
["T",null,"Tagschicht"]
["S",null,"Spätschicht"]
["N",null,"Nachtschicht"]
["a",null,"anwesend"]
["M",null,"Militärdienst"]
["E",null,"Erziehungsurlaub"]
["P",null,"Pflege"]
["Ki",null,"Kind krank"]
["KA",null,"Kurzarbeit",null,null,null,null,"Die Vorgaben des Bundesdatenschutzgesetzes sind einzuhalten!"]
["h",null,"Homeoffice"]
["h/2",null,"1/2 Tag Homeoffice",null,null,null,null,null,null,null,"Info  "]
["Sch",null,"Schulung"]
["x",null,"individuell"]
["y",null,"individuell"]
["z",null,"individuell"]
[]
[]
[]
[]
[]
[]
[]
[null,null,null,null,null,null,null,null,null,null,null,null,null,null,null,16,17,18,19,20,21,22,null,null,null,26,27,28,29,30,31,32,33,34,35,36,37,38,39,40,41,42,43,44,45,46,47,48,49,50,51,52,53,54,55,56,57,58,59,60,61,62,63,64,65,66,67,68,69,70,71,72,73,74,75,76,77,78,79,80,81,82,83,84,85,86,87,88,89,90,91,92,93,94,95,96,97,98,99,100,101]

{"sheet":"Diagramm_groß","index":2,"n_rows":0,"n_cols":0,"rows_kept":0,"cut":false,"hidden":true,"merged":[]}

{"sheet":"anwesend","index":3,"n_rows":0,"n_cols":0,"rows_kept":0,"cut":false,"hidden":false,"merged":[]}

{"sheet":"abwesend","index":4,"n_rows":0,"n_cols":0,"rows_kept":0,"cut":false,"hidden":false,"merged":[]}

{"sheet":"Statistik","index":5,"n_rows":29,"n_cols":100,"rows_kept":29,"cut":false,"hidden":true,"merged":[[0,5,0,8]]}
[null,null,null,null,"Word-\nFarbe",null,null,null,null,null,null,null,null,null,null,null,null,null,null,null,null,null,null,null,false,null,true]
[null,null,null,null,null,null,null,"Lizenziert für: Testfirma GmbH & Co. KG    Mustermann, Max",null,null,null,null,null,null,null,null,null,null,null,null,null,null,null,null,false]
["Name","k\nkrank","k/2\n1/2 Tag \nkrank","Ki\nKind\nkrank","Kur\nKur / Reha","P\nPflege","E\nErzieh.-Url.","BV\nBeschäftigungsverbot",null,null,null,null,null,null,null,null,null,null,null,null,null,null,null,null,false,null,"Krank\nsiehe Info"]
[null," k"," k/2"," Ki"," Kur"," P"," E","BV"]
[null,null,null,null,null,null,null,null,null,null,null,null,null,null,null,null,null,null,null,null,null,null,null,null,null,1,null,null,null,null,null,null,null,null,null,null,null,null,null,null,null,null,null,null,null,null,null,null,null,null,null,null,null,null,null,null,null,null,null,null,null,null,null,null,null,null,null,null,null,null,null,null,null,null,null,null,null,null,null,null,null,null,null,null,null,null,null,null,null,null,null,null,null,null,null,null,null,null,null,10]
[null,null,null,null,null,null,null,null,null,null,null,null,null,null,null,null,null,null,null,null,null,null,"23.03.2015",null,null,null,null,null,null,null,null,null,null,null,null,null,null,null,null,null,null,null,null,null,null,null,null,null,null,null,null,null,null,null,null,null,null,null,null,null,null,null,null,null,null,null,null,null,null,null,null,null,null,null,null,null,null,null,null,null,null,null,null,null,null,null,null,null,null,null,null,null,null,null,null,null,null,null,null,24]
[null,null,null,null,null,null,null,null,null,null,null,null,null,null,null,null,null,null,null,null,null,null,"23.03.2015",null,null,null,null,null,null,null,null,2,null,null,null,null,null,null,null,null,null,null,null,null,null,null,null,null,null,null,null,null,null,null,null,null,null,null,null,null,null,null,null,null,null,null,null,null,null,null,null,null,null,null,null,null,null,null,null,null,null,null,null,null,null,null,null,null,null,null,null,null,null,null,null,null,null,null,null,25]
[null,null,null,null,null,null,null,null,null,null,null,null,null,null,null,null,null,null,null,null,null,null,true,null,null,null,null,null,null,null,null,1]
[]
[]
[null,null,null,null,null,null,null,null,null,null,null,null,null,null,null,null,null,null,null,null,null,null,null,null,false]
[null,null,null,null,null,null,null,null,null,null,null,null,null,null,null,null,null,null,null,null,null,null,null,null,false]
[null,null,null,null,null,null,null,null,null,null,null,null,null,null,null,null,null,null,null,null,null,null,null,null,false]
[null,null,null,null,null,null,null,null,null,null,null,null,null,null,null,null,null,null,null,null,null,null,null,null,false]
[null,null,null,null,null,null,null,null,null,null,null,null,null,null,null,null,null,null,null,null,null,null,null,null,false]
[null,null,null,null,null,null,null,null,null,null,null,null,null,null,null,null,null,null,null,null,null,null,null,null,false]
[null,null,null,null,null,null,null,null,null,null,null,null,null,null,null,null,null,null,null,null,null,null,null,null,false]
[null,null,null,null,null,null,null,null,null,null,null,null,null,null,null,null,null,null,null,null,null,null,null,null,false,null,null,null,null,null,null,null,null,null,null,null,2]
[null,null,null,null,null,null,null,null,null,null,null,null,null,null,null,null,null,null,null,null,null,null,null,null,false,null,null,null,null,null,null,1]
[]
[]
[]
[]
[]
[null,null,null,null,null,null,null,null,null,null,null,null,null,null,null,null,null,null,null,null,null,null,null,null,null,null,null,null,null,null,null,2]
[]
[]
[]
[null,null,null,null,null,null,null,null,null,null,null,null,null,null,null,null,null,null,null,null,null,null,null,null,null,null,null,null,null,null,null,2,null,null,null,1]

{"sheet":"Tabelle2","index":6,"n_rows":3,"n_cols":7,"rows_kept":3,"cut":false,"hidden":true,"merged":[]}
["Junge","F.",30,4,0,"Chirurgie",10]
["Vogt Dr.","V.",30,4,2,"Chirurgie",24]
["Zahn, Dr.","W.",34,4,2,"Chirurgie",25]

{"sheet":"Tabelle1","index":7,"n_rows":129,"n_cols":23,"rows_kept":129,"cut":false,"hidden":true,"merged":[]}
[]
["Urlaub","  Jahres-\nurlaub","  Zusatz-\nurlaub","Rest-\nurlaub\nVorjahr","u\nGeneh-\nmigt","u/2\nhalber \nTag u","u?\nAntrag","u/0\nunbez.\nUrlaub","noch \nverfügbar"]
[null,"  Jahresurlaub","  Zusatzurlaub","  Resturlaub V.","  u","  u/2","  u?","  unbez. Urlaub","  noch verfügbar"]
[]
["Krankheit","k\nkrank","k/2\n1/2 Tag \nkrank","Ki\nKind\nkrank","Kur\nKur / Reha","P\nPflege","E\nErzieh.-Url.","BV\nBeschäftigungsverbot"]
[null," k"," k/2"," Ki"," Kur"," P"," E","BV",null,null,null,null,null,null,null,null,null,null,null,null,null,null,"01.01.2015"]
[null,null,null,null,null,null,null,null,null,null,null,null,null,null,null,null,null,null,null,null,null,null,"01.01.2015"]
["Anwesenheit"," F\nFrüh-\nschicht"," T\nTag-\nschicht"," S\nSpät-\nschicht"," N\nNacht-\nschicht","B\nBereit-\nschaft","x \r\n","y \r\n","z \r\n"]
[null," F"," T"," S"," N"," B"," x"," y"," z"]
[]
["Abwesenheit"," G\nGleitzeit\nganztägig","Ü\ngenehmig-\nte Überst.","D\nDienst-\nreise","O \nSonder-\nurlaub","M\nMilitär-\ndienst","KA\nKurz-\narbeit","Sch\nSchulung\n","h\nHomeoffice\n","h/2\nHomeoffice\nhalber Tag"]
[null," G"," Ü"," D"," O"," M"," KA","Sch","h","h/2"]
[]
[]
[]
[]
[]
[]
[]
[]
[]
[]
[]
[]
[]
[]
[]
[]
[]
[]
[]
[]
[]
[]
[]
[]
[]
[]
[]
[]
[]
[]
[]
[]
[]
[]
[]
[]
[]
[]
[]
[]
[]
[]
[]
[]
[]
[]
[]
[]
[]
[]
[]
[]
[]
[]
[]
[]
[]
[]
[]
[]
[]
[]
[]
[]
[]
[]
[]
[]
[]
[]
[]
[]
[]
[]
[]
[]
[]
[]
[]
[]
[]
[]
[]
[]
[]
[]
[]
[]
[]
[]
[]
[]
[]
[]
[]
[]
[]
[]
[]
[]
[]
[]
[]
[]
[]
[]
[]
["01.01.",7]
["02.01.",7]
["05.01.",8]
["06.01.",6]
["07.01.",5]
["08.01.",7]
["09.01.",8]
["12.01.",8]
["13.01.",2]
["14.01.",2]

{"sheet":"Stunden","index":8,"n_rows":1000,"n_cols":11,"rows_kept":1000,"cut":false,"hidden":true,"merged":[]}
["\nNachname","Vorname","Pers.-Nr.","\nAbteilung","Stunden\nMo-Fr","Stunden\nSamstag","Stunden\nSonntag",0,0,"Stunden\ngesamt","Über-\nstunden"]
[null,null,null,null,null,null,null,{"$f":"IF(F2>0,(100+H$1)/100*F2,IF(A2>\"\",\"0\",\"\"))","v":""},{"$f":"IF(G2>0,(100+I$1)/100*G2,IF(A2>\"\",\"0\",\"\"))","v":""},{"$f":"IF(A2>\"\",E2+H2+I2,\"\")","v":""}]
[null,null,null,null,null,null,null,"","",""]
[null,null,null,null,null,null,null,"","",""]
[null,null,null,null,null,null,null,"","",""]
[null,null,null,null,null,null,null,"","",""]
[null,null,null,null,null,null,null,"","",""]
[null,null,null,null,null,null,null,"","",""]
[null,null,null,null,null,null,null,"","",""]
[null,null,null,null,null,null,null,"","",""]
[null,null,null,null,null,null,null,"","",""]
[null,null,null,null,null,null,null,"","",""]
[null,null,null,null,null,null,null,"","",""]
[null,null,null,null,null,null,null,"","",""]
[null,null,null,null,null,null,null,"","",""]
[null,null,null,null,null,null,null,"","",""]
[null,null,null,null,null,null,null,"","",""]
[null,null,null,null,null,null,null,"","",""]
[null,null,null,null,null,null,null,"","",""]
[null,null,null,null,null,null,null,"","",""]
[null,null,null,null,null,null,null,"","",""]
[null,null,null,null,null,null,null,"","",""]
[null,null,null,null,null,null,null,"","",""]
[null,null,null,null,null,null,null,"","",""]
[null,null,null,null,null,null,null,"","",""]
[null,null,null,null,null,null,null,"","",""]
[null,null,null,null,null,null,null,"","",""]
[null,null,null,null,null,null,null,"","",""]
[null,null,null,null,null,null,null,"","",""]
[null,null,null,null,null,null,null,"","",""]
[null,null,null,null,null,null,null,"","",""]
[null,null,null,null,null,null,null,"","",""]
[null,null,null,null,null,null,null,"","",""]
[null,null,null,null,null,null,null,"","",""]
[null,null,null,null,null,null,null,"","",""]
[null,null,null,null,null,null,null,"","",""]
[null,null,null,null,null,null,null,"","",""]
[null,null,null,null,null,null,null,"","",""]
[null,null,null,null,null,null,null,"","",""]
[null,null,null,null,null,null,null,"","",""]
[null,null,null,null,null,null,null,"","",""]
[null,null,null,null,null,null,null,"","",""]
[null,null,null,null,null,null,null,"","",""]
[null,null,null,null,null,null,null,"","",""]
[null,null,null,null,null,null,null,"","",""]
[null,null,null,null,null,null,null,"","",""]
[null,null,null,null,null,null,null,"","",""]
[null,null,null,null,null,null,null,"","",""]
[null,null,null,null,null,null,null,"","",""]
[null,null,null,null,null,null,null,"","",""]
[null,null,null,null,null,null,null,"","",""]
[null,null,null,null,null,null,null,"","",""]
[null,null,null,null,null,null,null,"","",""]
[null,null,null,null,null,null,null,"","",""]
[null,null,null,null,null,null,null,"","",""]
[null,null,null,null,null,null,null,"","",""]
[null,null,null,null,null,null,null,"","",""]
[null,null,null,null,null,null,null,"","",""]
[null,null,null,null,null,null,null,"","",""]
[null,null,null,null,null,null,null,"","",""]
[null,null,null,null,null,null,null,"","",""]
[null,null,null,null,null,null,null,"","",""]
[null,null,null,null,null,null,null,"","",""]
[null,null,null,null,null,null,null,"","",""]
[null,null,null,null,null,null,null,"","",""]
[null,null,null,null,null,null,null,{"$f":"IF(F66>0,(100+H$1)/100*F66,IF(A66>\"\",\"0\",\"\"))","v":""},{"$f":"IF(G66>0,(100+I$1)/100*G66,IF(A66>\"\",\"0\",\"\"))","v":""},{"$f":"IF(A66>\"\",E66+H66+I66,\"\")","v":""}]
[null,null,null,null,null,null,null,"","",""]
[null,null,null,null,null,null,null,"","",""]
[null,null,null,null,null,null,null,"","",""]
[null,null,null,null,null,null,null,"","",""]
[null,null,null,null,null,null,null,"","",""]
[null,null,null,null,null,null,null,"","",""]
[null,null,null,null,null,null,null,"","",""]
[null,null,null,null,null,null,null,"","",""]
[null,null,null,null,null,null,null,"","",""]
[null,null,null,null,null,null,null,"","",""]
[null,null,null,null,null,null,null,"","",""]
[null,null,null,null,null,null,null,"","",""]
[null,null,null,null,null,null,null,"","",""]
[null,null,null,null,null,null,null,"","",""]
[null,null,null,null,null,null,null,"","",""]
[null,null,null,null,null,null,null,"","",""]
[null,null,null,null,null,null,null,"","",""]
[null,null,null,null,null,null,null,"","",""]
[null,null,null,null,null,null,null,"","",""]
[null,null,null,null,null,null,null,"","",""]
[null,null,null,null,null,null,null,"","",""]
[null,null,null,null,null,null,null,"","",""]
[null,null,null,null,null,null,null,"","",""]
[null,null,null,null,null,null,null,"","",""]
[null,null,null,null,null,null,null,"","",""]
[null,null,null,null,null,null,null,"","",""]
[null,null,null,null,null,null,null,"","",""]
[null,null,null,null,null,null,null,"","",""]
[null,null,null,null,null,null,null,"","",""]
[null,null,null,null,null,null,null,"","",""]
[null,null,null,null,null,null,null,"","",""]
[null,null,null,null,null,null,null,"","",""]
[null,null,null,null,null,null,null,"","",""]
[null,null,null,null,null,null,null,"","",""]
[null,null,null,null,null,null,null,"","",""]
[null,null,null,null,null,null,null,"","",""]
[null,null,null,null,null,null,null,"","",""]
[null,null,null,null,null,null,null,"","",""]
[null,null,null,null,null,null,null,"","",""]
[null,null,null,null,null,null,null,"","",""]
[null,null,null,null,null,null,null,"","",""]
[null,null,null,null,null,null,null,"","",""]
[null,null,null,null,null,null,null,"","",""]
[null,null,null,null,null,null,null,"","",""]
[null,null,null,null,null,null,null,"","",""]
[null,null,null,null,null,null,null,"","",""]
[null,null,null,null,null,null,null,"","",""]
[null,null,null,null,null,null,null,"","",""]
[null,null,null,null,null,null,null,"","",""]
[null,null,null,null,null,null,null,"","",""]
[null,null,null,null,null,null,null,"","",""]
[null,null,null,null,null,null,null,"","",""]
[null,null,null,null,null,null,null,"","",""]
[null,null,null,null,null,null,null,"","",""]
[null,null,null,null,null,null,null,"","",""]
[null,null,null,null,null,null,null,"","",""]
[null,null,null,null,null,null,null,"","",""]
[null,null,null,null,null,null,null,"","",""]
[null,null,null,null,null,null,null,"","",""]
[null,null,null,null,null,null,null,"","",""]
[null,null,null,null,null,null,null,"","",""]
[null,null,null,null,null,null,null,"","",""]
[null,null,null,null,null,null,null,"","",""]
[null,null,null,null,null,null,null,{"$f":"IF(F130>0,(100+H$1)/100*F130,IF(A130>\"\",\"0\",\"\"))","v":""},{"$f":"IF(G130>0,(100+I$1)/100*G130,IF(A130>\"\",\"0\",\"\"))","v":""},{"$f":"IF(A130>\"\",E130+H130+I130,\"\")","v":""}]
[null,null,null,null,null,null,null,"","",""]
[null,null,null,null,null,null,null,"","",""]
[null,null,null,null,null,null,null,"","",""]
[null,null,null,null,null,null,null,"","",""]
[null,null,null,null,null,null,null,"","",""]
[null,null,null,null,null,null,null,"","",""]
[null,null,null,null,null,null,null,"","",""]
[null,null,null,null,null,null,null,"","",""]
[null,null,null,null,null,null,null,"","",""]
[null,null,null,null,null,null,null,"","",""]
[null,null,null,null,null,null,null,"","",""]
[null,null,null,null,null,null,null,"","",""]
[null,null,null,null,null,null,null,"","",""]
[null,null,null,null,null,null,null,"","",""]
[null,null,null,null,null,null,null,"","",""]
[null,null,null,null,null,null,null,"","",""]
[null,null,null,null,null,null,null,"","",""]
[null,null,null,null,null,null,null,"","",""]
[null,null,null,null,null,null,null,"","",""]
[null,null,null,null,null,null,null,"","",""]
[null,null,null,null,null,null,null,"","",""]
[null,null,null,null,null,null,null,"","",""]
[null,null,null,null,null,null,null,"","",""]
[null,null,null,null,null,null,null,"","",""]
[null,null,null,null,null,null,null,"","",""]
[null,null,null,null,null,null,null,"","",""]
[null,null,null,null,null,null,null,"","",""]
[null,null,null,null,null,null,null,"","",""]
[null,null,null,null,null,null,null,"","",""]
[null,null,null,null,null,null,null,"","",""]
[null,null,null,null,null,null,null,"","",""]
[null,null,null,null,null,null,null,"","",""]
[null,null,null,null,null,null,null,"","",""]
[null,null,null,null,null,null,null,"","",""]
[null,null,null,null,null,null,null,"","",""]
[null,null,null,null,null,null,null,"","",""]
[null,null,null,null,null,null,null,"","",""]
[null,null,null,null,null,null,null,"","",""]
[null,null,null,null,null,null,null,"","",""]
[null,null,null,null,null,null,null,"","",""]
[null,null,null,null,null,null,null,"","",""]
[null,null,null,null,null,null,null,"","",""]
[null,null,null,null,null,null,null,"","",""]
[null,null,null,null,null,null,null,"","",""]
[null,null,null,null,null,null,null,"","",""]
[null,null,null,null,null,null,null,"","",""]
[null,null,null,null,null,null,null,"","",""]
[null,null,null,null,null,null,null,"","",""]
[null,null,null,null,null,null,null,"","",""]
[null,null,null,null,null,null,null,"","",""]
[null,null,null,null,null,null,null,"","",""]
[null,null,null,null,null,null,null,"","",""]
[null,null,null,null,null,null,null,"","",""]
[null,null,null,null,null,null,null,"","",""]
[null,null,null,null,null,null,null,"","",""]
[null,null,null,null,null,null,null,"","",""]
[null,null,null,null,null,null,null,"","",""]
[null,null,null,null,null,null,null,"","",""]
[null,null,null,null,null,null,null,"","",""]
[null,null,null,null,null,null,null,"","",""]
[null,null,null,null,null,null,null,"","",""]
[null,null,null,null,null,null,null,"","",""]
[null,null,null,null,null,null,null,"","",""]
[null,null,null,null,null,null,null,{"$f":"IF(F194>0,(100+H$1)/100*F194,IF(A194>\"\",\"0\",\"\"))","v":""},{"$f":"IF(G194>0,(100+I$1)/100*G194,IF(A194>\"\",\"0\",\"\"))","v":""},{"$f":"IF(A194>\"\",E194+H194+I194,\"\")","v":""}]
[null,null,null,null,null,null,null,"","",""]
[null,null,null,null,null,null,null,"","",""]
[null,null,null,null,null,null,null,"","",""]
[null,null,null,null,null,null,null,"","",""]
[null,null,null,null,null,null,null,"","",""]
[null,null,null,null,null,null,null,"","",""]
[null,null,null,null,null,null,null,"","",""]
[null,null,null,null,null,null,null,"","",""]
[null,null,null,null,null,null,null,"","",""]
[null,null,null,null,null,null,null,"","",""]
[null,null,null,null,null,null,null,"","",""]
[null,null,null,null,null,null,null,"","",""]
[null,null,null,null,null,null,null,"","",""]
[null,null,null,null,null,null,null,"","",""]
[null,null,null,null,null,null,null,"","",""]
[null,null,null,null,null,null,null,"","",""]
[null,null,null,null,null,null,null,"","",""]
[null,null,null,null,null,null,null,"","",""]
[null,null,null,null,null,null,null,"","",""]
[null,null,null,null,null,null,null,"","",""]
[null,null,null,null,null,null,null,"","",""]
[null,null,null,null,null,null,null,"","",""]
[null,null,null,null,null,null,null,"","",""]
[null,null,null,null,null,null,null,"","",""]
[null,null,null,null,null,null,null,"","",""]
[null,null,null,null,null,null,null,"","",""]
[null,null,null,null,null,null,null,"","",""]
[null,null,null,null,null,null,null,"","",""]
[null,null,null,null,null,null,null,"","",""]
[null,null,null,null,null,null,null,"","",""]
[null,null,null,null,null,null,null,"","",""]
[null,null,null,null,null,null,null,"","",""]
[null,null,null,null,null,null,null,"","",""]
[null,null,null,null,null,null,null,"","",""]
[null,null,null,null,null,null,null,"","",""]
[null,null,null,null,null,null,null,"","",""]
[null,null,null,null,null,null,null,"","",""]
[null,null,null,null,null,null,null,"","",""]
[null,null,null,null,null,null,null,"","",""]
[null,null,null,null,null,null,null,"","",""]
[null,null,null,null,null,null,null,"","",""]
[null,null,null,null,null,null,null,"","",""]
[null,null,null,null,null,null,null,"","",""]
[null,null,null,null,null,null,null,"","",""]
[null,null,null,null,null,null,null,"","",""]
[null,null,null,null,null,null,null,"","",""]
[null,null,null,null,null,null,null,"","",""]
[null,null,null,null,null,null,null,"","",""]
[null,null,null,null,null,null,null,"","",""]
[null,null,null,null,null,null,null,"","",""]
[null,null,null,null,null,null,null,"","",""]
[null,null,null,null,null,null,null,"","",""]
[null,null,null,null,null,null,null,"","",""]
[null,null,null,null,null,null,null,"","",""]
[null,null,null,null,null,null,null,"","",""]
[null,null,null,null,null,null,null,"","",""]
[null,null,null,null,null,null,null,"","",""]
[null,null,null,null,null,null,null,"","",""]
[null,null,null,null,null,null,null,"","",""]
[null,null,null,null,null,null,null,"","",""]
[null,null,null,null,null,null,null,"","",""]
[null,null,null,null,null,null,null,"","",""]
[null,null,null,null,null,null,null,"","",""]
[null,null,null,null,null,null,null,{"$f":"IF(F258>0,(100+H$1)/100*F258,IF(A258>\"\",\"0\",\"\"))","v":""},{"$f":"IF(G258>0,(100+I$1)/100*G258,IF(A258>\"\",\"0\",\"\"))","v":""},{"$f":"IF(A258>\"\",E258+H258+I258,\"\")","v":""}]
[null,null,null,null,null,null,null,"","",""]
[null,null,null,null,null,null,null,"","",""]
[null,null,null,null,null,null,null,"","",""]
[null,null,null,null,null,null,null,"","",""]
[null,null,null,null,null,null,null,"","",""]
[null,null,null,null,null,null,null,"","",""]
[null,null,null,null,null,null,null,"","",""]
[null,null,null,null,null,null,null,"","",""]
[null,null,null,null,null,null,null,"","",""]
[null,null,null,null,null,null,null,"","",""]
[null,null,null,null,null,null,null,"","",""]
[null,null,null,null,null,null,null,"","",""]
[null,null,null,null,null,null,null,"","",""]
[null,null,null,null,null,null,null,"","",""]
[null,null,null,null,null,null,null,"","",""]
[null,null,null,null,null,null,null,"","",""]
[null,null,null,null,null,null,null,"","",""]
[null,null,null,null,null,null,null,"","",""]
[null,null,null,null,null,null,null,"","",""]
[null,null,null,null,null,null,null,"","",""]
[null,null,null,null,null,null,null,"","",""]
[null,null,null,null,null,null,null,"","",""]
[null,null,null,null,null,null,null,"","",""]
[null,null,null,null,null,null,null,"","",""]
[null,null,null,null,null,null,null,"","",""]
[null,null,null,null,null,null,null,"","",""]
[null,null,null,null,null,null,null,"","",""]
[null,null,null,null,null,null,null,"","",""]
[null,null,null,null,null,null,null,"","",""]
[null,null,null,null,null,null,null,"","",""]
[null,null,null,null,null,null,null,"","",""]
[null,null,null,null,null,null,null,"","",""]
[null,null,null,null,null,null,null,"","",""]
[null,null,null,null,null,null,null,"","",""]
[null,null,null,null,null,null,null,"","",""]
[null,null,null,null,null,null,null,"","",""]
[null,null,null,null,null,null,null,"","",""]
[null,null,null,null,null,null,null,"","",""]
[null,null,null,null,null,null,null,"","",""]
[null,null,null,null,null,null,null,"","",""]
[null,null,null,null,null,null,null,"","",""]
[null,null,null,null,null,null,null,"","",""]
[null,null,null,null,null,null,null,"","",""]
[null,null,null,null,null,null,null,"","",""]
[null,null,null,null,null,null,null,"","",""]
[null,null,null,null,null,null,null,"","",""]
[null,null,null,null,null,null,null,"","",""]
[null,null,null,null,null,null,null,"","",""]
[null,null,null,null,null,null,null,"","",""]
[null,null,null,null,null,null,null,"","",""]
[null,null,null,null,null,null,null,"","",""]
[null,null,null,null,null,null,null,"","",""]
[null,null,null,null,null,null,null,"","",""]
[null,null,null,null,null,null,null,"","",""]
[null,null,null,null,null,null,null,"","",""]
[null,null,null,null,null,null,null,"","",""]
[null,null,null,null,null,null,null,"","",""]
[null,null,null,null,null,null,null,"","",""]
[null,null,null,null,null,null,null,"","",""]
[null,null,null,null,null,null,null,"","",""]
[null,null,null,null,null,null,null,"","",""]
[null,null,null,null,null,null,null,"","",""]
[null,null,null,null,null,null,null,"","",""]
[null,null,null,null,null,null,null,{"$f":"IF(F322>0,(100+H$1)/100*F322,IF(A322>\"\",\"0\",\"\"))","v":""},{"$f":"IF(G322>0,(100+I$1)/100*G322,IF(A322>\"\",\"0\",\"\"))","v":""},{"$f":"IF(A322>\"\",E322+H322+I322,\"\")","v":""}]
[null,null,null,null,null,null,null,"","",""]
[null,null,null,null,null,null,null,"","",""]
[null,null,null,null,null,null,null,"","",""]
[null,null,null,null,null,null,null,"","",""]
[null,null,null,null,null,null,null,"","",""]
[null,null,null,null,null,null,null,"","",""]
[null,null,null,null,null,null,null,"","",""]
[null,null,null,null,null,null,null,"","",""]
[null,null,null,null,null,null,null,"","",""]
[null,null,null,null,null,null,null,"","",""]
[null,null,null,null,null,null,null,"","",""]
[null,null,null,null,null,null,null,"","",""]
[null,null,null,null,null,null,null,"","",""]
[null,null,null,null,null,null,null,"","",""]
[null,null,null,null,null,null,null,"","",""]
[null,null,null,null,null,null,null,"","",""]
[null,null,null,null,null,null,null,"","",""]
[null,null,null,null,null,null,null,"","",""]
[null,null,null,null,null,null,null,"","",""]
[null,null,null,null,null,null,null,"","",""]
[null,null,null,null,null,null,null,"","",""]
[null,null,null,null,null,null,null,"","",""]
[null,null,null,null,null,null,null,"","",""]
[null,null,null,null,null,null,null,"","",""]
[null,null,null,null,null,null,null,"","",""]
[null,null,null,null,null,null,null,"","",""]
[null,null,null,null,null,null,null,"","",""]
[null,null,null,null,null,null,null,"","",""]
[null,null,null,null,null,null,null,"","",""]
[null,null,null,null,null,null,null,"","",""]
[null,null,null,null,null,null,null,"","",""]
[null,null,null,null,null,null,null,"","",""]
[null,null,null,null,null,null,null,"","",""]
[null,null,null,null,null,null,null,"","",""]
[null,null,null,null,null,null,null,"","",""]
[null,null,null,null,null,null,null,"","",""]
[null,null,null,null,null,null,null,"","",""]
[null,null,null,null,null,null,null,"","",""]
[null,null,null,null,null,null,null,"","",""]
[null,null,null,null,null,null,null,"","",""]
[null,null,null,null,null,null,null,"","",""]
[null,null,null,null,null,null,null,"","",""]
[null,null,null,null,null,null,null,"","",""]
[null,null,null,null,null,null,null,"","",""]
[null,null,null,null,null,null,null,"","",""]
[null,null,null,null,null,null,null,"","",""]
[null,null,null,null,null,null,null,"","",""]
[null,null,null,null,null,null,null,"","",""]
[null,null,null,null,null,null,null,"","",""]
[null,null,null,null,null,null,null,"","",""]
[null,null,null,null,null,null,null,"","",""]
[null,null,null,null,null,null,null,"","",""]
[null,null,null,null,null,null,null,"","",""]
[null,null,null,null,null,null,null,"","",""]
[null,null,null,null,null,null,null,"","",""]
[null,null,null,null,null,null,null,"","",""]
[null,null,null,null,null,null,null,"","",""]
[null,null,null,null,null,null,null,"","",""]
[null,null,null,null,null,null,null,"","",""]
[null,null,null,null,null,null,null,"","",""]
[null,null,null,null,null,null,null,"","",""]
[null,null,null,null,null,null,null,"","",""]
[null,null,null,null,null,null,null,"","",""]
[null,null,null,null,null,null,null,{"$f":"IF(F386>0,(100+H$1)/100*F386,IF(A386>\"\",\"0\",\"\"))","v":""},{"$f":"IF(G386>0,(100+I$1)/100*G386,IF(A386>\"\",\"0\",\"\"))","v":""},{"$f":"IF(A386>\"\",E386+H386+I386,\"\")","v":""}]
[null,null,null,null,null,null,null,"","",""]
[null,null,null,null,null,null,null,"","",""]
[null,null,null,null,null,null,null,"","",""]
[null,null,null,null,null,null,null,"","",""]
[null,null,null,null,null,null,null,"","",""]
[null,null,null,null,null,null,null,"","",""]
[null,null,null,null,null,null,null,"","",""]
[null,null,null,null,null,null,null,"","",""]
[null,null,null,null,null,null,null,"","",""]
[null,null,null,null,null,null,null,"","",""]
[null,null,null,null,null,null,null,"","",""]
[null,null,null,null,null,null,null,"","",""]
[null,null,null,null,null,null,null,"","",""]
[null,null,null,null,null,null,null,"","",""]
[null,null,null,null,null,null,null,"","",""]
[null,null,null,null,null,null,null,"","",""]
[null,null,null,null,null,null,null,"","",""]
[null,null,null,null,null,null,null,"","",""]
[null,null,null,null,null,null,null,"","",""]
[null,null,null,null,null,null,null,"","",""]
[null,null,null,null,null,null,null,"","",""]
[null,null,null,null,null,null,null,"","",""]
[null,null,null,null,null,null,null,"","",""]
[null,null,null,null,null,null,null,"","",""]
[null,null,null,null,null,null,null,"","",""]
[null,null,null,null,null,null,null,"","",""]
[null,null,null,null,null,null,null,"","",""]
[null,null,null,null,null,null,null,"","",""]
[null,null,null,null,null,null,null,"","",""]
[null,null,null,null,null,null,null,"","",""]
[null,null,null,null,null,null,null,"","",""]
[null,null,null,null,null,null,null,"","",""]
[null,null,null,null,null,null,null,"","",""]
[null,null,null,null,null,null,null,"","",""]
[null,null,null,null,null,null,null,"","",""]
[null,null,null,null,null,null,null,"","",""]
[null,null,null,null,null,null,null,"","",""]
[null,null,null,null,null,null,null,"","",""]
[null,null,null,null,null,null,null,"","",""]
[null,null,null,null,null,null,null,"","",""]
[null,null,null,null,null,null,null,"","",""]
[null,null,null,null,null,null,null,"","",""]
[null,null,null,null,null,null,null,"","",""]
[null,null,null,null,null,null,null,"","",""]
[null,null,null,null,null,null,null,"","",""]
[null,null,null,null,null,null,null,"","",""]
[null,null,null,null,null,null,null,"","",""]
[null,null,null,null,null,null,null,"","",""]
[null,null,null,null,null,null,null,"","",""]
[null,null,null,null,null,null,null,"","",""]
[null,null,null,null,null,null,null,"","",""]
[null,null,null,null,null,null,null,"","",""]
[null,null,null,null,null,null,null,"","",""]
[null,null,null,null,null,null,null,"","",""]
[null,null,null,null,null,null,null,"","",""]
[null,null,null,null,null,null,null,"","",""]
[null,null,null,null,null,null,null,"","",""]
[null,null,null,null,null,null,null,"","",""]
[null,null,null,null,null,null,null,"","",""]
[null,null,null,null,null,null,null,"","",""]
[null,null,null,null,null,null,null,"","",""]
[null,null,null,null,null,null,null,"","",""]
[null,null,null,null,null,null,null,"","",""]
[null,null,null,null,null,null,null,{"$f":"IF(F450>0,(100+H$1)/100*F450,IF(A450>\"\",\"0\",\"\"))","v":""},{"$f":"IF(G450>0,(100+I$1)/100*G450,IF(A450>\"\",\"0\",\"\"))","v":""},{"$f":"IF(A450>\"\",E450+H450+I450,\"\")","v":""}]
[null,null,null,null,null,null,null,"","",""]
[null,null,null,null,null,null,null,"","",""]
[null,null,null,null,null,null,null,"","",""]
[null,null,null,null,null,null,null,"","",""]
[null,null,null,null,null,null,null,"","",""]
[null,null,null,null,null,null,null,"","",""]
[null,null,null,null,null,null,null,"","",""]
[null,null,null,null,null,null,null,"","",""]
[null,null,null,null,null,null,null,"","",""]
[null,null,null,null,null,null,null,"","",""]
[null,null,null,null,null,null,null,"","",""]
[null,null,null,null,null,null,null,"","",""]
[null,null,null,null,null,null,null,"","",""]
[null,null,null,null,null,null,null,"","",""]
[null,null,null,null,null,null,null,"","",""]
[null,null,null,null,null,null,null,"","",""]
[null,null,null,null,null,null,null,"","",""]
[null,null,null,null,null,null,null,"","",""]
[null,null,null,null,null,null,null,"","",""]
[null,null,null,null,null,null,null,"","",""]
[null,null,null,null,null,null,null,"","",""]
[null,null,null,null,null,null,null,"","",""]
[null,null,null,null,null,null,null,"","",""]
[null,null,null,null,null,null,null,"","",""]
[null,null,null,null,null,null,null,"","",""]
[null,null,null,null,null,null,null,"","",""]
[null,null,null,null,null,null,null,"","",""]
[null,null,null,null,null,null,null,"","",""]
[null,null,null,null,null,null,null,"","",""]
[null,null,null,null,null,null,null,"","",""]
[null,null,null,null,null,null,null,"","",""]
[null,null,null,null,null,null,null,"","",""]
[null,null,null,null,null,null,null,"","",""]
[null,null,null,null,null,null,null,"","",""]
[null,null,null,null,null,null,null,"","",""]
[null,null,null,null,null,null,null,"","",""]
[null,null,null,null,null,null,null,"","",""]
[null,null,null,null,null,null,null,"","",""]
[null,null,null,null,null,null,null,"","",""]
[null,null,null,null,null,null,null,"","",""]
[null,null,null,null,null,null,null,"","",""]
[null,null,null,null,null,null,null,"","",""]
[null,null,null,null,null,null,null,"","",""]
[null,null,null,null,null,null,null,"","",""]
[null,null,null,null,null,null,null,"","",""]
[null,null,null,null,null,null,null,"","",""]
[null,null,null,null,null,null,null,"","",""]
[null,null,null,null,null,null,null,"","",""]
[null,null,null,null,null,null,null,"","",""]
[null,null,null,null,null,null,null,"","",""]
[null,null,null,null,null,null,null,"","",""]
[null,null,null,null,null,null,null,"","",""]
[null,null,null,null,null,null,null,"","",""]
[null,null,null,null,null,null,null,"","",""]
[null,null,null,null,null,null,null,"","",""]
[null,null,null,null,null,null,null,"","",""]
[null,null,null,null,null,null,null,"","",""]
[null,null,null,null,null,null,null,"","",""]
[null,null,null,null,null,null,null,"","",""]
[null,null,null,null,null,null,null,"","",""]
[null,null,null,null,null,null,null,"","",""]
[null,null,null,null,null,null,null,"","",""]
[null,null,null,null,null,null,null,"","",""]
[null,null,null,null,null,null,null,{"$f":"IF(F514>0,(100+H$1)/100*F514,IF(A514>\"\",\"0\",\"\"))","v":""},{"$f":"IF(G514>0,(100+I$1)/100*G514,IF(A514>\"\",\"0\",\"\"))","v":""},{"$f":"IF(A514>\"\",E514+H514+I514,\"\")","v":""}]
[null,null,null,null,null,null,null,"","",""]
[null,null,null,null,null,null,null,"","",""]
[null,null,null,null,null,null,null,"","",""]
[null,null,null,null,null,null,null,"","",""]
[null,null,null,null,null,null,null,"","",""]
[null,null,null,null,null,null,null,"","",""]
[null,null,null,null,null,null,null,"","",""]
[null,null,null,null,null,null,null,"","",""]
[null,null,null,null,null,null,null,"","",""]
[null,null,null,null,null,null,null,"","",""]
[null,null,null,null,null,null,null,"","",""]
[null,null,null,null,null,null,null,"","",""]
[null,null,null,null,null,null,null,"","",""]
[null,null,null,null,null,null,null,"","",""]
[null,null,null,null,null,null,null,"","",""]
[null,null,null,null,null,null,null,"","",""]
[null,null,null,null,null,null,null,"","",""]
[null,null,null,null,null,null,null,"","",""]
[null,null,null,null,null,null,null,"","",""]
[null,null,null,null,null,null,null,"","",""]
[null,null,null,null,null,null,null,"","",""]
[null,null,null,null,null,null,null,"","",""]
[null,null,null,null,null,null,null,"","",""]
[null,null,null,null,null,null,null,"","",""]
[null,null,null,null,null,null,null,"","",""]
[null,null,null,null,null,null,null,"","",""]
[null,null,null,null,null,null,null,"","",""]
[null,null,null,null,null,null,null,"","",""]
[null,null,null,null,null,null,null,"","",""]
[null,null,null,null,null,null,null,"","",""]
[null,null,null,null,null,null,null,"","",""]
[null,null,null,null,null,null,null,"","",""]
[null,null,null,null,null,null,null,"","",""]
[null,null,null,null,null,null,null,"","",""]
[null,null,null,null,null,null,null,"","",""]
[null,null,null,null,null,null,null,"","",""]
[null,null,null,null,null,null,null,"","",""]
[null,null,null,null,null,null,null,"","",""]
[null,null,null,null,null,null,null,"","",""]
[null,null,null,null,null,null,null,"","",""]
[null,null,null,null,null,null,null,"","",""]
[null,null,null,null,null,null,null,"","",""]
[null,null,null,null,null,null,null,"","",""]
[null,null,null,null,null,null,null,"","",""]
[null,null,null,null,null,null,null,"","",""]
[null,null,null,null,null,null,null,"","",""]
[null,null,null,null,null,null,null,"","",""]
[null,null,null,null,null,null,null,"","",""]
[null,null,null,null,null,null,null,"","",""]
[null,null,null,null,null,null,null,"","",""]
[null,null,null,null,null,null,null,"","",""]
[null,null,null,null,null,null,null,"","",""]
[null,null,null,null,null,null,null,"","",""]
[null,null,null,null,null,null,null,"","",""]
[null,null,null,null,null,null,null,"","",""]
[null,null,null,null,null,null,null,"","",""]
[null,null,null,null,null,null,null,"","",""]
[null,null,null,null,null,null,null,"","",""]
[null,null,null,null,null,null,null,"","",""]
[null,null,null,null,null,null,null,"","",""]
[null,null,null,null,null,null,null,"","",""]
[null,null,null,null,null,null,null,"","",""]
[null,null,null,null,null,null,null,"","",""]
[null,null,null,null,null,null,null,{"$f":"IF(F578>0,(100+H$1)/100*F578,IF(A578>\"\",\"0\",\"\"))","v":""},{"$f":"IF(G578>0,(100+I$1)/100*G578,IF(A578>\"\",\"0\",\"\"))","v":""},{"$f":"IF(A578>\"\",E578+H578+I578,\"\")","v":""}]
[null,null,null,null,null,null,null,"","",""]
[null,null,null,null,null,null,null,"","",""]
[null,null,null,null,null,null,null,"","",""]
[null,null,null,null,null,null,null,"","",""]
[null,null,null,null,null,null,null,"","",""]
[null,null,null,null,null,null,null,"","",""]
[null,null,null,null,null,null,null,"","",""]
[null,null,null,null,null,null,null,"","",""]
[null,null,null,null,null,null,null,"","",""]
[null,null,null,null,null,null,null,"","",""]
[null,null,null,null,null,null,null,"","",""]
[null,null,null,null,null,null,null,"","",""]
[null,null,null,null,null,null,null,"","",""]
[null,null,null,null,null,null,null,"","",""]
[null,null,null,null,null,null,null,"","",""]
[null,null,null,null,null,null,null,"","",""]
[null,null,null,null,null,null,null,"","",""]
[null,null,null,null,null,null,null,"","",""]
[null,null,null,null,null,null,null,"","",""]
[null,null,null,null,null,null,null,"","",""]
[null,null,null,null,null,null,null,"","",""]
[null,null,null,null,null,null,null,"","",""]
[null,null,null,null,null,null,null,"","",""]
[null,null,null,null,null,null,null,"","",""]
[null,null,null,null,null,null,null,"","",""]
[null,null,null,null,null,null,null,"","",""]
[null,null,null,null,null,null,null,"","",""]
[null,null,null,null,null,null,null,"","",""]
[null,null,null,null,null,null,null,"","",""]
[null,null,null,null,null,null,null,"","",""]
[null,null,null,null,null,null,null,"","",""]
[null,null,null,null,null,null,null,"","",""]
[null,null,null,null,null,null,null,"","",""]
[null,null,null,null,null,null,null,"","",""]
[null,null,null,null,null,null,null,"","",""]
[null,null,null,null,null,null,null,"","",""]
[null,null,null,null,null,null,null,"","",""]
[null,null,null,null,null,null,null,"","",""]
[null,null,null,null,null,null,null,"","",""]
[null,null,null,null,null,null,null,"","",""]
[null,null,null,null,null,null,null,"","",""]
[null,null,null,null,null,null,null,"","",""]
[null,null,null,null,null,null,null,"","",""]
[null,null,null,null,null,null,null,"","",""]
[null,null,null,null,null,null,null,"","",""]
[null,null,null,null,null,null,null,"","",""]
[null,null,null,null,null,null,null,"","",""]
[null,null,null,null,null,null,null,"","",""]
[null,null,null,null,null,null,null,"","",""]
[null,null,null,null,null,null,null,"","",""]
[null,null,null,null,null,null,null,"","",""]
[null,null,null,null,null,null,null,"","",""]
[null,null,null,null,null,null,null,"","",""]
[null,null,null,null,null,null,null,"","",""]
[null,null,null,null,null,null,null,"","",""]
[null,null,null,null,null,null,null,"","",""]
[null,null,null,null,null,null,null,"","",""]
[null,null,null,null,null,null,null,"","",""]
[null,null,null,null,null,null,null,"","",""]
[null,null,null,null,null,null,null,"","",""]
[null,null,null,null,null,null,null,"","",""]
[null,null,null,null,null,null,null,"","",""]
[null,null,null,null,null,null,null,"","",""]
[null,null,null,null,null,null,null,{"$f":"IF(F642>0,(100+H$1)/100*F642,IF(A642>\"\",\"0\",\"\"))","v":""},{"$f":"IF(G642>0,(100+I$1)/100*G642,IF(A642>\"\",\"0\",\"\"))","v":""},{"$f":"IF(A642>\"\",E642+H642+I642,\"\")","v":""}]
[null,null,null,null,null,null,null,"","",""]
[null,null,null,null,null,null,null,"","",""]
[null,null,null,null,null,null,null,"","",""]
[null,null,null,null,null,null,null,"","",""]
[null,null,null,null,null,null,null,"","",""]
[null,null,null,null,null,null,null,"","",""]
[null,null,null,null,null,null,null,"","",""]
[null,null,null,null,null,null,null,"","",""]
[null,null,null,null,null,null,null,"","",""]
[null,null,null,null,null,null,null,"","",""]
[null,null,null,null,null,null,null,"","",""]
[null,null,null,null,null,null,null,"","",""]
[null,null,null,null,null,null,null,"","",""]
[null,null,null,null,null,null,null,"","",""]
[null,null,null,null,null,null,null,"","",""]
[null,null,null,null,null,null,null,"","",""]
[null,null,null,null,null,null,null,"","",""]
[null,null,null,null,null,null,null,"","",""]
[null,null,null,null,null,null,null,"","",""]
[null,null,null,null,null,null,null,"","",""]
[null,null,null,null,null,null,null,"","",""]
[null,null,null,null,null,null,null,"","",""]
[null,null,null,null,null,null,null,"","",""]
[null,null,null,null,null,null,null,"","",""]
[null,null,null,null,null,null,null,"","",""]
[null,null,null,null,null,null,null,"","",""]
[null,null,null,null,null,null,null,"","",""]
[null,null,null,null,null,null,null,"","",""]
[null,null,null,null,null,null,null,"","",""]
[null,null,null,null,null,null,null,"","",""]
[null,null,null,null,null,null,null,"","",""]
[null,null,null,null,null,null,null,"","",""]
[null,null,null,null,null,null,null,"","",""]
[null,null,null,null,null,null,null,"","",""]
[null,null,null,null,null,null,null,"","",""]
[null,null,null,null,null,null,null,"","",""]
[null,null,null,null,null,null,null,"","",""]
[null,null,null,null,null,null,null,"","",""]
[null,null,null,null,null,null,null,"","",""]
[null,null,null,null,null,null,null,"","",""]
[null,null,null,null,null,null,null,"","",""]
[null,null,null,null,null,null,null,"","",""]
[null,null,null,null,null,null,null,"","",""]
[null,null,null,null,null,null,null,"","",""]
[null,null,null,null,null,null,null,"","",""]
[null,null,null,null,null,null,null,"","",""]
[null,null,null,null,null,null,null,"","",""]
[null,null,null,null,null,null,null,"","",""]
[null,null,null,null,null,null,null,"","",""]
[null,null,null,null,null,null,null,"","",""]
[null,null,null,null,null,null,null,"","",""]
[null,null,null,null,null,null,null,"","",""]
[null,null,null,null,null,null,null,"","",""]
[null,null,null,null,null,null,null,"","",""]
[null,null,null,null,null,null,null,"","",""]
[null,null,null,null,null,null,null,"","",""]
[null,null,null,null,null,null,null,"","",""]
[null,null,null,null,null,null,null,"","",""]
[null,null,null,null,null,null,null,"","",""]
[null,null,null,null,null,null,null,"","",""]
[null,null,null,null,null,null,null,"","",""]
[null,null,null,null,null,null,null,"","",""]
[null,null,null,null,null,null,null,"","",""]
[null,null,null,null,null,null,null,{"$f":"IF(F706>0,(100+H$1)/100*F706,IF(A706>\"\",\"0\",\"\"))","v":""},{"$f":"IF(G706>0,(100+I$1)/100*G706,IF(A706>\"\",\"0\",\"\"))","v":""},{"$f":"IF(A706>\"\",E706+H706+I706,\"\")","v":""}]
[null,null,null,null,null,null,null,"","",""]
[null,null,null,null,null,null,null,"","",""]
[null,null,null,null,null,null,null,"","",""]
[null,null,null,null,null,null,null,"","",""]
[null,null,null,null,null,null,null,"","",""]
[null,null,null,null,null,null,null,"","",""]
[null,null,null,null,null,null,null,"","",""]
[null,null,null,null,null,null,null,"","",""]
[null,null,null,null,null,null,null,"","",""]
[null,null,null,null,null,null,null,"","",""]
[null,null,null,null,null,null,null,"","",""]
[null,null,null,null,null,null,null,"","",""]
[null,null,null,null,null,null,null,"","",""]
[null,null,null,null,null,null,null,"","",""]
[null,null,null,null,null,null,null,"","",""]
[null,null,null,null,null,null,null,"","",""]
[null,null,null,null,null,null,null,"","",""]
[null,null,null,null,null,null,null,"","",""]
[null,null,null,null,null,null,null,"","",""]
[null,null,null,null,null,null,null,"","",""]
[null,null,null,null,null,null,null,"","",""]
[null,null,null,null,null,null,null,"","",""]
[null,null,null,null,null,null,null,"","",""]
[null,null,null,null,null,null,null,"","",""]
[null,null,null,null,null,null,null,"","",""]
[null,null,null,null,null,null,null,"","",""]
[null,null,null,null,null,null,null,"","",""]
[null,null,null,null,null,null,null,"","",""]
[null,null,null,null,null,null,null,"","",""]
[null,null,null,null,null,null,null,"","",""]
[null,null,null,null,null,null,null,"","",""]
[null,null,null,null,null,null,null,"","",""]
[null,null,null,null,null,null,null,"","",""]
[null,null,null,null,null,null,null,"","",""]
[null,null,null,null,null,null,null,"","",""]
[null,null,null,null,null,null,null,"","",""]
[null,null,null,null,null,null,null,"","",""]
[null,null,null,null,null,null,null,"","",""]
[null,null,null,null,null,null,null,"","",""]
[null,null,null,null,null,null,null,"","",""]
[null,null,null,null,null,null,null,"","",""]
[null,null,null,null,null,null,null,"","",""]
[null,null,null,null,null,null,null,"","",""]
[null,null,null,null,null,null,null,"","",""]
[null,null,null,null,null,null,null,"","",""]
[null,null,null,null,null,null,null,"","",""]
[null,null,null,null,null,null,null,"","",""]
[null,null,null,null,null,null,null,"","",""]
[null,null,null,null,null,null,null,"","",""]
[null,null,null,null,null,null,null,"","",""]
[null,null,null,null,null,null,null,"","",""]
[null,null,null,null,null,null,null,"","",""]
[null,null,null,null,null,null,null,"","",""]
[null,null,null,null,null,null,null,"","",""]
[null,null,null,null,null,null,null,"","",""]
[null,null,null,null,null,null,null,"","",""]
[null,null,null,null,null,null,null,"","",""]
[null,null,null,null,null,null,null,"","",""]
[null,null,null,null,null,null,null,"","",""]
[null,null,null,null,null,null,null,"","",""]
[null,null,null,null,null,null,null,"","",""]
[null,null,null,null,null,null,null,"","",""]
[null,null,null,null,null,null,null,"","",""]
[null,null,null,null,null,null,null,{"$f":"IF(F770>0,(100+H$1)/100*F770,IF(A770>\"\",\"0\",\"\"))","v":""},{"$f":"IF(G770>0,(100+I$1)/100*G770,IF(A770>\"\",\"0\",\"\"))","v":""},{"$f":"IF(A770>\"\",E770+H770+I770,\"\")","v":""}]
[null,null,null,null,null,null,null,"","",""]
[null,null,null,null,null,null,null,"","",""]
[null,null,null,null,null,null,null,"","",""]
[null,null,null,null,null,null,null,"","",""]
[null,null,null,null,null,null,null,"","",""]
[null,null,null,null,null,null,null,"","",""]
[null,null,null,null,null,null,null,"","",""]
[null,null,null,null,null,null,null,"","",""]
[null,null,null,null,null,null,null,"","",""]
[null,null,null,null,null,null,null,"","",""]
[null,null,null,null,null,null,null,"","",""]
[null,null,null,null,null,null,null,"","",""]
[null,null,null,null,null,null,null,"","",""]
[null,null,null,null,null,null,null,"","",""]
[null,null,null,null,null,null,null,"","",""]
[null,null,null,null,null,null,null,"","",""]
[null,null,null,null,null,null,null,"","",""]
[null,null,null,null,null,null,null,"","",""]
[null,null,null,null,null,null,null,"","",""]
[null,null,null,null,null,null,null,"","",""]
[null,null,null,null,null,null,null,"","",""]
[null,null,null,null,null,null,null,"","",""]
[null,null,null,null,null,null,null,"","",""]
[null,null,null,null,null,null,null,"","",""]
[null,null,null,null,null,null,null,"","",""]
[null,null,null,null,null,null,null,"","",""]
[null,null,null,null,null,null,null,"","",""]
[null,null,null,null,null,null,null,"","",""]
[null,null,null,null,null,null,null,"","",""]
[null,null,null,null,null,null,null,"","",""]
[null,null,null,null,null,null,null,"","",""]
[null,null,null,null,null,null,null,"","",""]
[null,null,null,null,null,null,null,"","",""]
[null,null,null,null,null,null,null,"","",""]
[null,null,null,null,null,null,null,"","",""]
[null,null,null,null,null,null,null,"","",""]
[null,null,null,null,null,null,null,"","",""]
[null,null,null,null,null,null,null,"","",""]
[null,null,null,null,null,null,null,"","",""]
[null,null,null,null,null,null,null,"","",""]
[null,null,null,null,null,null,null,"","",""]
[null,null,null,null,null,null,null,"","",""]
[null,null,null,null,null,null,null,"","",""]
[null,null,null,null,null,null,null,"","",""]
[null,null,null,null,null,null,null,"","",""]
[null,null,null,null,null,null,null,"","",""]
[null,null,null,null,null,null,null,"","",""]
[null,null,null,null,null,null,null,"","",""]
[null,null,null,null,null,null,null,"","",""]
[null,null,null,null,null,null,null,"","",""]
[null,null,null,null,null,null,null,"","",""]
[null,null,null,null,null,null,null,"","",""]
[null,null,null,null,null,null,null,"","",""]
[null,null,null,null,null,null,null,"","",""]
[null,null,null,null,null,null,null,"","",""]
[null,null,null,null,null,null,null,"","",""]
[null,null,null,null,null,null,null,"","",""]
[null,null,null,null,null,null,null,"","",""]
[null,null,null,null,null,null,null,"","",""]
[null,null,null,null,null,null,null,"","",""]
[null,null,null,null,null,null,null,"","",""]
[null,null,null,null,null,null,null,"","",""]
[null,null,null,null,null,null,null,"","",""]
[null,null,null,null,null,null,null,{"$f":"IF(F834>0,(100+H$1)/100*F834,IF(A834>\"\",\"0\",\"\"))","v":""},{"$f":"IF(G834>0,(100+I$1)/100*G834,IF(A834>\"\",\"0\",\"\"))","v":""},{"$f":"IF(A834>\"\",E834+H834+I834,\"\")","v":""}]
[null,null,null,null,null,null,null,"","",""]
[null,null,null,null,null,null,null,"","",""]
[null,null,null,null,null,null,null,"","",""]
[null,null,null,null,null,null,null,"","",""]
[null,null,null,null,null,null,null,"","",""]
[null,null,null,null,null,null,null,"","",""]
[null,null,null,null,null,null,null,"","",""]
[null,null,null,null,null,null,null,"","",""]
[null,null,null,null,null,null,null,"","",""]
[null,null,null,null,null,null,null,"","",""]
[null,null,null,null,null,null,null,"","",""]
[null,null,null,null,null,null,null,"","",""]
[null,null,null,null,null,null,null,"","",""]
[null,null,null,null,null,null,null,"","",""]
[null,null,null,null,null,null,null,"","",""]
[null,null,null,null,null,null,null,"","",""]
[null,null,null,null,null,null,null,"","",""]
[null,null,null,null,null,null,null,"","",""]
[null,null,null,null,null,null,null,"","",""]
[null,null,null,null,null,null,null,"","",""]
[null,null,null,null,null,null,null,"","",""]
[null,null,null,null,null,null,null,"","",""]
[null,null,null,null,null,null,null,"","",""]
[null,null,null,null,null,null,null,"","",""]
[null,null,null,null,null,null,null,"","",""]
[null,null,null,null,null,null,null,"","",""]
[null,null,null,null,null,null,null,"","",""]
[null,null,null,null,null,null,null,"","",""]
[null,null,null,null,null,null,null,"","",""]
[null,null,null,null,null,null,null,"","",""]
[null,null,null,null,null,null,null,"","",""]
[null,null,null,null,null,null,null,"","",""]
[null,null,null,null,null,null,null,"","",""]
[null,null,null,null,null,null,null,"","",""]
[null,null,null,null,null,null,null,"","",""]
[null,null,null,null,null,null,null,"","",""]
[null,null,null,null,null,null,null,"","",""]
[null,null,null,null,null,null,null,"","",""]
[null,null,null,null,null,null,null,"","",""]
[null,null,null,null,null,null,null,"","",""]
[null,null,null,null,null,null,null,"","",""]
[null,null,null,null,null,null,null,"","",""]
[null,null,null,null,null,null,null,"","",""]
[null,null,null,null,null,null,null,"","",""]
[null,null,null,null,null,null,null,"","",""]
[null,null,null,null,null,null,null,"","",""]
[null,null,null,null,null,null,null,"","",""]
[null,null,null,null,null,null,null,"","",""]
[null,null,null,null,null,null,null,"","",""]
[null,null,null,null,null,null,null,"","",""]
[null,null,null,null,null,null,null,"","",""]
[null,null,null,null,null,null,null,"","",""]
[null,null,null,null,null,null,null,"","",""]
[null,null,null,null,null,null,null,"","",""]
[null,null,null,null,null,null,null,"","",""]
[null,null,null,null,null,null,null,"","",""]
[null,null,null,null,null,null,null,"","",""]
[null,null,null,null,null,null,null,"","",""]
[null,null,null,null,null,null,null,"","",""]
[null,null,null,null,null,null,null,"","",""]
[null,null,null,null,null,null,null,"","",""]
[null,null,null,null,null,null,null,"","",""]
[null,null,null,null,null,null,null,"","",""]
[null,null,null,null,null,null,null,{"$f":"IF(F898>0,(100+H$1)/100*F898,IF(A898>\"\",\"0\",\"\"))","v":""},{"$f":"IF(G898>0,(100+I$1)/100*G898,IF(A898>\"\",\"0\",\"\"))","v":""},{"$f":"IF(A898>\"\",E898+H898+I898,\"\")","v":""}]
[null,null,null,null,null,null,null,"","",""]
[null,null,null,null,null,null,null,"","",""]
[null,null,null,null,null,null,null,"","",""]
[null,null,null,null,null,null,null,"","",""]
[null,null,null,null,null,null,null,"","",""]
[null,null,null,null,null,null,null,"","",""]
[null,null,null,null,null,null,null,"","",""]
[null,null,null,null,null,null,null,"","",""]
[null,null,null,null,null,null,null,"","",""]
[null,null,null,null,null,null,null,"","",""]
[null,null,null,null,null,null,null,"","",""]
[null,null,null,null,null,null,null,"","",""]
[null,null,null,null,null,null,null,"","",""]
[null,null,null,null,null,null,null,"","",""]
[null,null,null,null,null,null,null,"","",""]
[null,null,null,null,null,null,null,"","",""]
[null,null,null,null,null,null,null,"","",""]
[null,null,null,null,null,null,null,"","",""]
[null,null,null,null,null,null,null,"","",""]
[null,null,null,null,null,null,null,"","",""]
[null,null,null,null,null,null,null,"","",""]
[null,null,null,null,null,null,null,"","",""]
[null,null,null,null,null,null,null,"","",""]
[null,null,null,null,null,null,null,"","",""]
[null,null,null,null,null,null,null,"","",""]
[null,null,null,null,null,null,null,"","",""]
[null,null,null,null,null,null,null,"","",""]
[null,null,null,null,null,null,null,"","",""]
[null,null,null,null,null,null,null,"","",""]
[null,null,null,null,null,null,null,"","",""]
[null,null,null,null,null,null,null,"","",""]
[null,null,null,null,null,null,null,"","",""]
[null,null,null,null,null,null,null,"","",""]
[null,null,null,null,null,null,null,"","",""]
[null,null,null,null,null,null,null,"","",""]
[null,null,null,null,null,null,null,"","",""]
[null,null,null,null,null,null,null,"","",""]
[null,null,null,null,null,null,null,"","",""]
[null,null,null,null,null,null,null,"","",""]
[null,null,null,null,null,null,null,"","",""]
[null,null,null,null,null,null,null,"","",""]
[null,null,null,null,null,null,null,"","",""]
[null,null,null,null,null,null,null,"","",""]
[null,null,null,null,null,null,null,"","",""]
[null,null,null,null,null,null,null,"","",""]
[null,null,null,null,null,null,null,"","",""]
[null,null,null,null,null,null,null,"","",""]
[null,null,null,null,null,null,null,"","",""]
[null,null,null,null,null,null,null,"","",""]
[null,null,null,null,null,null,null,"","",""]
[null,null,null,null,null,null,null,"","",""]
[null,null,null,null,null,null,null,"","",""]
[null,null,null,null,null,null,null,"","",""]
[null,null,null,null,null,null,null,"","",""]
[null,null,null,null,null,null,null,"","",""]
[null,null,null,null,null,null,null,"","",""]
[null,null,null,null,null,null,null,"","",""]
[null,null,null,null,null,null,null,"","",""]
[null,null,null,null,null,null,null,"","",""]
[null,null,null,null,null,null,null,"","",""]
[null,null,null,null,null,null,null,"","",""]
[null,null,null,null,null,null,null,"","",""]
[null,null,null,null,null,null,null,"","",""]
[null,null,null,null,null,null,null,{"$f":"IF(F962>0,(100+H$1)/100*F962,IF(A962>\"\",\"0\",\"\"))","v":""},{"$f":"IF(G962>0,(100+I$1)/100*G962,IF(A962>\"\",\"0\",\"\"))","v":""},{"$f":"IF(A962>\"\",E962+H962+I962,\"\")","v":""}]
[null,null,null,null,null,null,null,"","",""]
[null,null,null,null,null,null,null,"","",""]
[null,null,null,null,null,null,null,"","",""]
[null,null,null,null,null,null,null,"","",""]
[null,null,null,null,null,null,null,"","",""]
[null,null,null,null,null,null,null,"","",""]
[null,null,null,null,null,null,null,"","",""]
[null,null,null,null,null,null,null,"","",""]
[null,null,null,null,null,null,null,"","",""]
[null,null,null,null,null,null,null,"","",""]
[null,null,null,null,null,null,null,"","",""]
[null,null,null,null,null,null,null,"","",""]
[null,null,null,null,null,null,null,"","",""]
[null,null,null,null,null,null,null,"","",""]
[null,null,null,null,null,null,null,"","",""]
[null,null,null,null,null,null,null,"","",""]
[null,null,null,null,null,null,null,"","",""]
[null,null,null,null,null,null,null,"","",""]
[null,null,null,null,null,null,null,"","",""]
[null,null,null,null,null,null,null,"","",""]
[null,null,null,null,null,null,null,"","",""]
[null,null,null,null,null,null,null,"","",""]
[null,null,null,null,null,null,null,"","",""]
[null,null,null,null,null,null,null,"","",""]
[null,null,null,null,null,null,null,"","",""]
[null,null,null,null,null,null,null,"","",""]
[null,null,null,null,null,null,null,"","",""]
[null,null,null,null,null,null,null,"","",""]
[null,null,null,null,null,null,null,"","",""]
[null,null,null,null,null,null,null,"","",""]
[null,null,null,null,null,null,null,"","",""]
[null,null,null,null,null,null,null,"","",""]
[null,null,null,null,null,null,null,"","",""]
[null,null,null,null,null,null,null,"","",""]
[null,null,null,null,null,null,null,"","",""]
[null,null,null,null,null,null,null,"","",""]
[null,null,null,null,null,null,null,"","",""]
[null,null,null,null,null,null,null,"","",""]

{"sheet":"Anw_Diagramm","index":9,"n_rows":8,"n_cols":23,"rows_kept":8,"cut":false,"hidden":false,"merged":[]}
["Datum","Anw.","Max",null,null,null,null,null,null,null,null,null,"Datum","Anw.","Max"]
[]
[]
[null,null,null,null,null,null,null,null,null,null,null,null,null,null,null,null,null,null,null,null,null,null,false]
[null,null,null,null,null,null,null,null,null,null,null,null,null,null,null,null,null,null,null,null,null,null,false]
[null,null,null,null,null,null,null,null,null,null,null,null,null,null,null,null,null,null,null,null,null,null,"1.1.14"]
[null,null,null,null,null,null,null,null,null,null,null,null,null,null,null,null,null,null,null,null,null,null,"10.1.14"]
[null,null,null,null,null,null,null,null,null,null,null,null,null,null,null,null,null,null,null,null,null,null,true]

{"sheet":"Kürzel","index":10,"n_rows":1,"n_cols":1,"rows_kept":1,"cut":false,"hidden":false,"merged":[[0,0,0,7]]}
["SL-Urlaubsplaner-Legende"]

{"sheet":"Gesamt","index":11,"n_rows":30,"n_cols":56,"rows_kept":30,"cut":false,"hidden":true,"merged":[[0,3,0,5],[0,38,1,41],[1,3,1,4],[1,6,1,8]]}
[null,null,"Gesamtstatistik",null,null,null,null,null,null,null,null,null,null,null,null,null,null,null,null,null,null,null,null,null,null,null,null,null,null,null,null,null,null,{"$f":"Diagramm!B29","v":0},{"$f":"Diagramm!B30","v":0},{"$f":"Diagramm!B31","v":0},"Druck","Individuell ","Individuelle\nAuswertungen"]
[null,null,"von - bis:",null,null,"-",null,null,null,null,null,null,null,null,null,null,null,null,null,null,null,null,null,null,null,null,null,null,null,null,null,null,null,null,null,null,"Sortieren"]
[null,null,null,"Jahres-\nurlaub","u\nZusatz","uRest\nVorjahr","u","u/2","u?","u/0","O","u  noch\nverfügb","k","k/2","Ki","P","Kur","E","BV","KA","G","Ü","D","B","F","T","S","N","a","M","h","h/2","Sch","x","y","z",null,null,"k\nges","Kur/Reha\n+ E","…","…","…","…","…","…","…","…","…","…","…","…","…","…","…","…"]
[]
["Name","Name","Abteilung"]
[]
[null,null,null,null,null,null,null,null,null,null,null,null,null,null,null,null,null,null,null,null,null,null,null,null,null,null,null,null,null,null,null,null,null,null,null,null,null,null,null,{"$f":"Q7+S7","v":0}]
[]
[]
[null,null,null,null,null,null,null,null,null,null,null,null,null,null,null,null,null,null,null,null,null,null,null,null,null,null,null,null,null,null,null,null,null,null,null,null,null,null,null,{"$f":"Q10+S10","v":0}]
[null,null,null,null,null,null,null,null,null,null,null,null,null,null,null,null,null,null,null,null,null,null,null,null,null,null,null,null,null,null,null,null,null,null,null,null,null,null,null,0]
[null,null,null,null,null,null,null,null,null,null,null,null,null,null,null,null,null,null,null,null,null,null,null,null,null,null,null,null,null,null,null,null,null,null,null,null,null,null,null,0]
[null,null,null,null,null,null,null,null,null,null,null,null,null,null,null,null,null,null,null,null,null,null,null,null,null,null,null,null,null,null,null,null,null,null,null,null,null,null,null,0]
[null,null,null,null,null,null,null,null,null,null,null,null,null,null,null,null,null,null,null,null,null,null,null,null,null,null,null,null,null,null,null,null,null,null,null,null,null,null,null,0]
[null,null,null,null,null,null,null,null,null,null,null,null,null,null,null,null,null,null,null,null,null,null,null,null,null,null,null,null,null,null,null,null,null,null,null,null,null,null,null,0]
[null,null,null,null,null,null,null,null,null,null,null,null,null,null,null,null,null,null,null,null,null,null,null,null,null,null,null,null,null,null,null,null,null,null,null,null,null,null,null,0]
[null,null,null,null,null,null,null,null,null,null,null,null,null,null,null,null,null,null,null,null,null,null,null,null,null,null,null,null,null,null,null,null,null,null,null,null,null,null,null,0]
[null,null,null,null,null,null,null,null,null,null,null,null,null,null,null,null,null,null,null,null,null,null,null,null,null,null,null,null,null,null,null,null,null,null,null,null,null,null,null,0]
[]
[]
[]
[]
[]
[]
[]
[null,null,null,null,null,null,null,null,null,null,null,null,null,null,null,null,null,null,null,null,null,null,null,null,null,null,null,null,null,null,null,null,null,null,null,null,null,null,null,{"$f":"Q26+S26","v":0}]
[null,null,null,null,null,null,null,null,null,null,null,null,null,null,null,null,null,null,null,null,null,null,null,null,null,null,null,null,null,null,null,null,null,null,null,null,null,null,null,{"$f":"Q27+S27","v":0}]
[null,null,null,null,null,null,null,null,null,null,null,null,null,null,null,null,null,null,null,null,null,null,null,null,null,null,null,null,null,null,null,null,null,null,null,null,null,null,null,{"$f":"Q28+S28","v":0}]
[null,null,null,null,null,null,null,null,null,null,null,null,null,null,null,null,null,null,null,null,null,null,null,null,null,null,null,null,null,null,null,null,null,null,null,null,null,null,null,{"$f":"Q29+S29","v":0}]
[null,null,null,null,null,null,null,null,null,null,null,null,null,null,null,null,null,null,null,null,null,null,null,null,null,null,null,null,null,null,null,null,null,null,null,null,null,null,null,{"$f":"Q30+S30","v":0}]

{"sheet":"-","index":12,"n_rows":4,"n_cols":62,"rows_kept":4,"cut":false,"hidden":true,"merged":[]}
[null,null,null,null,"x","x","x"]
[null,null,null,"Mi","Do","Fr","Sa","So","Mo","Di","Mi","Do","Fr","Sa","So","Mo","Di","Mi","Do","Fr","Sa","So","Mo","Di","Mi","Do","Fr","Sa","So","Mo","Di","Mi","Do","Fr","Sa","So","Mo","Di","Mi","Do","Fr","Sa","So","Mo","Di","Mi","Do","Fr","Sa","So","Mo","Di","Mi","Do","Fr","Sa","So","Mo","Di","Mi","Do","Fr"]
["Sort->","Name","Abteilung","01.01.","02.01.","03.01.","04.01.","05.01.","06.01.","07.01.","08.01.","09.01.","10.01.","11.01.","12.01.","13.01.","14.01.","15.01.","16.01.","17.01.","18.01.","19.01.","20.01.","21.01.","22.01.","23.01.","24.01.","25.01.","26.01.","27.01.","28.01.","29.01.","30.01.","31.01.","01.02.","02.02.","03.02.","04.02.","05.02.","06.02.","07.02.","08.02.","09.02.","10.02.","11.02.","12.02.","13.02.","14.02.","15.02.","16.02.","17.02.","18.02.","19.02.","20.02.","21.02.","22.02.","23.02.","24.02.","25.02.","26.02.","27.02.","28.02."]
[null,"Adam, F.","EDV",null,"h","h","h/2"]

{"sheet":"Info","index":13,"n_rows":118,"n_cols":10,"rows_kept":118,"cut":false,"hidden":false,"merged":[[117,1,117,6],[111,1,111,6],[23,1,23,6],[43,1,43,6],[116,1,116,6],[32,1,32,6],[33,1,33,6],[34,1,34,6],[35,1,35,6],[36,1,36,6],[37,1,37,6],[38,1,38,6],[42,1,42,6],[93,1,93,6],[30,1,30,6],[112,1,112,6],[121,1,121,6],[14,1,14,6],[28,2,29,6],[15,1,15,6],[17,1,17,6],[18,1,18,6],[19,1,19,6],[20,1,20,6],[22,1,22,6],[100,5,100,6],[24,1,24,6],[25,1,25,6],[26,1,26,6],[27,1,27,6],[44,1,44,6],[40,1,40,6],[60,1,60,6],[62,1,63,1],[2,0,3,0],[11,2,11,6],[12,1,12,6],[13,1,13,6],[0,3,6,6],[102,1,102,3],[102,5,102,6],[104,1,104,6],[105,1,105,6],[21,1,21,6],[85,1,85,3],[80,2,80,6],[45,1,45,2],[46,1,46,6],[47,1,47,6],[55,1,55,6],[56,1,57,6],[71,1,71,6],[72,1,72,6],[75,1,75,6],[79,1,79,6],[103,0,103,6],[107,1,107,6],[106,1,106,6],[115,1,115,6],[108,1,108,6],[109,1,109,6],[101,1,101,3],[65,9,66,9],[113,1,113,6],[114,1,114,6],[100,1,100,3],[94,1,94,6],[95,1,95,6],[97,1,97,6],[98,1,98,6],[99,1,99,3],[99,5,99,6],[81,2,81,6],[82,2,82,6],[83,2,83,6],[92,1,92,6],[110,1,110,6]]}
["\"Anwesenheits-Statistik\" ein Excel-Tool für den SL-Urlaubsplaner",null,null,"\nNeu:  Vers.1.5   (12.12.2015)\n-  Tabelle \"Gesamt\" mit allen Kürzeln\n    globale Such- und Sortierfunktion\n    s. Punkt 3a\nNeue Kürzel:  \n\nZuletzt in Vers. 1.4   (24.03.2015):\n-  Erweiterter Datenschutz u. Druckreport\n-  Urlaubstatistik, zusätzl. Spalte \"krank\"\n-  zuletzt geänderte Kürzel:",null,null,null,"Vollfunktionsfähig für 4 Urlaubsplaner-Konten",null,"Die Druckversion finden Sie auf unserer Homepage als PDF-Datei !"]
[]
["Software-\nEntwickler:\n","Software und Büroservice Christine Schremmer & Jörg Lortz\n63500 Seligenstadt,   Odenwaldring 13\n",null,null,null,null,null,"Letzte Änd. 29.8.2015, 24.03.2015"]
[null,"Stefan Ludewig,  63796  Kahl/Main,  Hauptstraße 23\nMail:  St.Ludewig@AOL.com",null,null,null,null,null,"Version 1.5, für REMA Fügetechnik"]
[]
[]
["Bedienungsanleitung"]
["1.","Funktionen:  Voll- bzw. Demoversion","5.       Systemvoraussetzung, Progamm-Einstellungen"]
["2.","Anleitung","6.       Preise "]
["3.","Erweiterungen in der  \"PLUS-Version\"  /  Neu: 3a","7.       Bestellen"]
["4.","Screenshots / Videos","8.       Kontakt / Rechte / Gewährleistung"]
[]
["Pkt. 1","Funktionen:  Voll- bzw. Demoversion"]
["1.1","Das Programm verarbeitet alle Einträge, s. Bl. \"Kürzel\" aus dem \"SL-Urlaubsplaner\""]
[null,"-  Anwesenheit:    a   F   S   T   N   x,  y,  z   /   kein Eintrag gilt auch als  anwesend"]
[null,"-  Abwesenheit:    u   u/2  u?   u/0   D   O   Ü   G   P   Kur   k   k/2   ki   P   M   E    Neu >    h   h/2   Sch"]
[]
["1.2","-  im Blatt \"Diagramm\" erfolgt die Auswertung mit Hinweis auf den  \"letzten Daten-Import\"\n    für alle Mitarbeiter (MA) mit Abteilungsangabe im Diagramm / Tabelle"]
["1.3","-  im Blatt \"Statistik\" >  alle An- und Abwesenheitseinträge in gestaffelte Balkendiagramme und Tabellen, \n   beliebige Zeiträume wählbar    >    Druckausgabe:  Excel und Word"]
["1.4","-  im Blatt \"Stunden\" >  alle erfassten Stunden / Überstunden im gewünschten Zeitraum\n    Wochenendzuschläge, freie zusätzliche Auswertungen möglich "]
["1.5","-  im Blatt \"Anw_Diagramm\" >  An- / Abwesenheit über beliebigen Zeitraum \n    mit Angabe zu Ein- / Austritt aus der Firma"]
["1.6","-  im Blatt \"Kürzel\" >  Informationen zu verwendeten Zeichen"]
["1.7","-  Neu:  Blatt \"Gesamt\" >  Auflistung aller verwendeten Kürzel mit globaler Such- und Sortierfunktion, s. Pkt.3a"]
["1.8\n","-  die kostenlose und vollfunktionsfähige Demoversion besitzt eine \"PLUS-Ausstattung\". Sie ist zum Testen  \n    auf die ersten 4 Konten Ihres SL-Urlaubsplaners begrenzt."]
[]
["Pkt. 2","Anleitung"]
["2.1","Erste Anwendung des Tools (Voll- / Demoversion):"]
[null,"-  Speichern Sie das Tool aus unserer Mail bzw. von unserer Homepage auf Ihren PC.\n-  Öffnen Sie es von dort  >  \"Bearbeiten aktivieren\"\n-  Laufzetfehler 1004   >  \"Beenden\"  >  erneut Speichern und Schließen  >  danach Programm erneut Öffnen. "]
[null,"-                                                                ",">   der Pfad für die spätere Daten-Aktualisierung \n     aus dem \"SL-Urlaubsplaner\" ist damit festgelegt\n(hier liegen die exportierten Daten des Urlaubsplaners, s.Pkt. 2.2.)"]
[]
["2.2","Datenübernahme aus dem \"SL-Urlaubsplaner\"  -  zuvor Datenexport aus dem Urlaubsplaner ausführen!",null,null,null,null,null,"2014, ab Vers. 2.14.6 "]
[]
[null,"2015, ab Vers. 2.15.7\"  >  Menü > \"Rohdaten-Export nach Excel\""]
[]
[]
["2.3","-  Blatt \"Diagramm\" "]
["2.3.1","-  in Zelle  \"H2\"  erhalten Sie einen Hinweis auf den  \"Lizenznehmer\""]
[null,"-  in Zelle  \"J3\"  steht das Datum für den letzten Datenexport aus dem \"SL-Urlaubsplaner\"\n   Bei älteren Daten erscheint ein Hinweis auf eine evtl. notwendige Aktualisierung!"]
[null,"-  klicken Sie nach der Aktualisierung  \n   der Urlaubsplaner-Daten auf den Button    >  "]
["2.3.2","-  Es öffnet sich eine  \"UserForm\"  (verschiebbar)"]
[null,"   -  □  \"Ich akzeptiere die Datenschutzbestimmungen\"    \n   >    der Krankenstand, Blatt \"Statistik\" u. \"Gesamt\" werden eingeblendet!"]
[]
[null,"   -  Wählen Sie die Abteilungen aus\n   -  es erscheinen die Mitarbeiter (MA) mit Abteilungsangabe.  \n       Zusätzlich, druckbar in den Blättern \"anwesend\" und \"abwesend\"."]
[null,"   -  das aktuelle Datum erscheint  >  wählen Sie z.B. 02.01.2014\n       >  als Eingabe genügt  2.1.14"]
[null,"   -  Vor- bzw. Rückblättern  im Diagramm mit Wochentags-Angabe "]
[null,"   -  Wochen- bzw. Monatsübersicht und längere Zeiträume möglich"]
[null,"   -  □ Samstag  □ Sonntag   <  bei Wochenendarbeit Haken setzen"]
[]
[]
[]
[]
[]
[]
[]
[]
["2.3.3","-  Individuelle Anwesenheitsvergabe von   x, y, z  z.B.  x = Azubi, … >   in Zelle G25 - G27"]
[null,"-  neuer Pfad ist im Blatt \"Diagramm\" wählbar, falls  z.B.\n   ●  der \"SL-Urlaubsplaner\" auf ein Netzlaufwerk verschoben wurde\n   ●  wenn ältere Datensätze geprüft werden sollen!"]
["2.3.4"]
[]
[]
["2.4","Blatt \"Statistik\":"]
["2.4.1"]
[]
[]
[]
[]
[]
[]
[]
[]
[]
[]
[]
[]
[]
["\n2.4.3","\n ●  Klick auf  >  \"Textdatei erstellen\"\n      Liste mit allen zuvor gewählten (MA):\n\nWahlweise:\n   ●  nur Urlaubstage  (txt)\n   ●  mit Schichtplänen  (txt)\n   ●  Worddatei  (doc)"]
[]
[]
[]
["Pkt. 3","Erweiterungen in der  \"PLUS-Version\"  -  Diagramme / Druckreport"]
[null,"   ●  Krankenstand: ","k     k/2     ki     Kur     P     E     bv"]
[null,"   ●  Anwesenheit:   ","F     T     S     N     B     x     y     z"]
[null,"   ●  Abwesenheit: ","G     Ü     D     O     M     KA     h     h/2     Sch"]
[null,"   ●  Word-Ausgabe"]
[]
["3a","Globale Such- und Sortierfunktion  (ab Vers. 1.5,  03.08.2015)\n"]
[]
[]
[]
[]
[]
[]
["Pkt. 4","Screenshots / Videos"]
[null,"Hilfestellung erhalten Sie auch auf unserer Homepage. Hier werden anschaulich die wichtigsten Funktionen und Vorgehensweisen vorgestellt.\n>  Homepage  >  SL-Tools  >  \"Anwesenheits-Statistik\""]
["Pkt. 5","Systemvoraussetzung, Progamm-Einstellungen"]
[null,"\"SL-Urlaubsplaner\"-Version ab 2.14.6 und 2.15.7\nVerfügbar nur für Excel 2007 und 2013.  \nÜber Änderungen informieren wir Sie per E-Mail und auf unserer Homepage."]
[null,"Hinweis für Programm-Anwender / Administrator:"]
[null,"In Einzelfällen ist die Einstellung der Makrosicherheit Ihres Systems anzupassen. Video hierzu liegt bei uns vor, bei Bedarf bitte anfordern."]
["Pkt. 6","Preise"]
["6.1","Die aktuellen Preise der \"…-PLUS-Version\" finden Sie auf unserer Homepage, Stand 12.12.2015",null,null,120]
[]
["6.2","Die Normalversion wird nicht mehr angeboten und ersetzt durch das \"u-k-Statistik\"-Tool",null,null,39]
["6.3","   ●  Alle Updates zum erworbenen \"SL-Tool\" sind kostenlos",null,null,"0 €"]
["Alle Preise in Euro inkl. USt.\n           "]
["Pkt. 7","Bestellen  -  können Sie direkt über uns. Testen Sie zuvor die vollfunktionsfähige und kostenlose Demoversion."]
[null,"   ●  Bei der Bestellung bitte angeben:   SL-Tool  \"Anwesenheits-Statistik-PLUS\""]
[null,"   ●  Ihre Rechnungsanschrift  /  ggf. auf Ihren Wunsch mit einer Bestell-Nr. (SAP, etc.)"]
[null,"   ●  Arbeiten Sie bereits mit der Vollversion unseres \"SL-Urlaubsplaners\" ?"]
[null,"   ●  Bei Bestellungen aus den EU-Staaten bitte UID-Nr. angeben"]
["Pkt. 8","Kontakt / Rechte / Gewährleistung"]
[null,"Software und Büroservice Christine Schremmer\nOdenwaldring 13\n63500 Seligenstadt\n\nTel.:   +49 (0) 6182 – 787 3203\nFax:   +49 (0) 6182 – 95 97 475\neMail: christine.schremmer@t-online.de\nUst-IdNr.:  DE250861697"]
[null,"Rechte"]
[null,"Das hier vorgestellte SL-Tool  \"Anwesenheits-Statistik-PLUS\" ist ein spezifisches Excel-Arbeitsblatt zur Auswertung aller Daten des \"SL-Urlaubsplaners\". Es gelten daher für die Voll- und Demoversionen die AGB's, Lizenzbedingungen und Schutzbestimmungen des \"SL-Urlaubsplaners\". \nDies gilt für alle Bestandteile und Inhalte. "]
[null,"Gewährleistung:  Vor Bestellung prüfen und kontrollieren Sie bitte an Hand der aktuellen, kostenlosen Demoversion, ob Umfang und Funktionen Ihren Vorstellungen entsprechen."]
[null,"Bitte vergewissern Sie sich durch Testeinträge im \"SL-Urlaubsplaner\" über die Plausiblität der Auswertungen mit dem neuen \"SL-Tool\"."]
[null,"Mängelansprüche werden entsprechend Punkt 6 unserer AGB's behoben bzw. beglichen. "]
[null,"Das Programm ermöglicht individuelle, tabellarische Auswertungen in freien Eingabebereichen, z.B. im Blatt \"Stunden\". Für diese ungeschützten Bereiche ist der Anwender selbst verantwortlich."]
[null,"Ihre Fragen werden wir gern und möglichst kurzfristig beantworten."]

{"sheet":"intern","index":14,"n_rows":0,"n_cols":0,"rows_kept":0,"cut":false,"hidden":true,"merged":[]}

{"sheet":"Urlaub_Druck","index":15,"n_rows":18,"n_cols":4,"rows_kept":18,"cut":false,"hidden":true,"merged":[[1,1,1,3]]}
[]
[null,"Ahmann, franz"]
[null,"Archiv"]
[null,"Pers.-Nr. 1"]
[]
[null,"Jahresurlaub:","30","Tage"]
[null,"Resturlaub Vorjahr:","0","Tage"]
[null,"Zusatzurlaub:","2","Tage"]
[null,"noch verfügbar:","31","Tage"]
[]
[null,"Urlaub:"]
[null,"03.01.-03.01. (1 T.)"]
[null,"gesamt:  1"]
[]
[]
[null,"unbezahlter Urlaub:"]
[null,"09.01.-09.01. (1 T.)"]
[null,"gesamt:  1"]